[Event "Titled Tuesday Blitz May 17 Early 2022"]
[White "Seemann, Jakub"]
[Black "Costachi, Mihnea"]
[WhiteFideId "21874697"]
[BlackFideId "1217518"]
[WhiteElo "2003"]
[BlackElo "2476"]
[Result "1-0"]
[Round "10"]
[TimeControl "180+1"]
[Date "2022.05.17"]
[WhiteClock "0:01:09"]
[BlackClock "0:01:09"]

1. e4 {[%clk 0:03:00]}  e5 {[%clk 0:02:59]} 2. Nf3 {[%clk 0:02:59]}  Nc6 {[%clk 0:02:59]} 3. Bb5 {[%clk 0:02:58]}  a6 {[%clk 0:02:59]} 4. Ba4 {[%clk 0:02:58]}  d6 {[%clk 0:03:00]} 5. O-O {[%clk 0:02:57]}  Bd7 {[%clk 0:03:00]} 6. c3 {[%clk 0:02:56]}  g6 {[%clk 0:03:01]} 7. Re1 {[%clk 0:02:56]}  Bg7 {[%clk 0:03:01]} 8. d4 {[%clk 0:02:54]}  Nf6 {[%clk 0:03:01]} 9. Nbd2 {[%clk 0:02:51]}  O-O {[%clk 0:03:01]} 10. Nf1 {[%clk 0:02:51]}  Re8 {[%clk 0:02:59]} 11. Ng3 {[%clk 0:02:49]}  b5 {[%clk 0:02:58]} 12. Bc2 {[%clk 0:02:49]}  exd4 {[%clk 0:02:59]} 13. cxd4 {[%clk 0:02:48]}  Bg4 {[%clk 0:02:59]} 14. Be3 {[%clk 0:02:44]}  Na5 {[%clk 0:02:52]} 15. b3 {[%clk 0:02:40]}  Rc8 {[%clk 0:02:51]} 16. h3 {[%clk 0:02:38]}  Bd7 {[%clk 0:02:50]} 17. Qd2 {[%clk 0:02:30]}  c5 {[%clk 0:02:51]} 18. dxc5 {[%clk 0:02:28]}  dxc5 {[%clk 0:02:51]} 19. Rad1 {[%clk 0:02:29]}  Be6 {[%clk 0:02:39]} 20. Qc1 {[%clk 0:02:05]}  Qc7 {[%clk 0:02:26]} 21. Bf4 {[%clk 0:02:01]}  Qb6 {[%clk 0:02:25]} 22. Bh6 {[%clk 0:01:53]}  c4 {[%clk 0:02:24]} 23. Bxg7 {[%clk 0:01:50]}  Kxg7 {[%clk 0:02:24]} 24. b4 {[%clk 0:01:46]}  Nc6 {[%clk 0:02:24]} 25. a3 {[%clk 0:01:46]}  a5 {[%clk 0:02:20]} 26. e5 {[%clk 0:01:44]}  Nd5 {[%clk 0:02:16]} 27. Qg5 {[%clk 0:01:38]}  h6 {[%clk 0:01:56]} 28. Nh5+ {[%clk 0:01:30]}  Kh7 {[%clk 0:01:56]} 29. Nf6+ {[%clk 0:01:25]}  Nxf6 {[%clk 0:01:57]} 30. Qxf6 {[%clk 0:01:24]}  axb4 {[%clk 0:01:46]} 31. Nh4 {[%clk 0:01:22]}  Ne7 {[%clk 0:01:31]} 32. Rd6 {[%clk 0:01:20]}  Rc6 {[%clk 0:01:31]} 33. Rxe6 {[%clk 0:01:14]}  Rxe6 {[%clk 0:01:23]} 34. Qxf7+ {[%clk 0:01:14]}  Kh8 {[%clk 0:01:24]} 35. Qxe8+ {[%clk 0:01:14]}  Ng8 {[%clk 0:01:24]} 36. Nxg6+ {[%clk 0:01:11]}  Rxg6 {[%clk 0:01:17]} 37. Bxg6 {[%clk 0:01:11]}  Qxg6 {[%clk 0:01:06]} 38. Qxg6 {[%clk 0:01:10]}  bxa3 {[%clk 0:01:06]} 39. e6 {[%clk 0:01:10]}  a2 {[%clk 0:01:06]} 40. e7 {[%clk 0:01:10]}  a1=Q {[%clk 0:01:07]} 41. Rxa1 {[%clk 0:01:09]}  Nxe7 {[%clk 0:01:08]} 42. Ra8+ {[%clk 0:01:08]}  Ng8 {[%clk 0:01:09]} 43. Rxg8# {[%clk 0:01:09]} 1-0


[Site "https://www.chess.com"]

[Event "Titled Tuesday Blitz May 17 Early 2022"]
[White "Seo, Jung Min"]
[Black "Shuvalova, Polina"]
[WhiteFideId "1734687"]
[BlackFideId "24171760"]
[WhiteElo "2401"]
[BlackElo "2355"]
[Result "1-0"]
[Round "10"]
[TimeControl "180+1"]
[Date "2022.05.17"]
[WhiteClock "0:01:53"]
[BlackClock "0:00:15"]

1. d4 {[%clk 0:03:00]}  Nf6 {[%clk 0:02:59]} 2. c4 {[%clk 0:03:01]}  e6 {[%clk 0:02:59]} 3. Nf3 {[%clk 0:03:01]}  d5 {[%clk 0:02:59]} 4. Nc3 {[%clk 0:03:01]}  c5 {[%clk 0:02:58]} 5. cxd5 {[%clk 0:03:00]}  exd5 {[%clk 0:02:59]} 6. Bg5 {[%clk 0:03:00]}  Be6 {[%clk 0:02:58]} 7. e3 {[%clk 0:03:00]}  c4 {[%clk 0:02:58]} 8. Qa4+ {[%clk 0:02:59]}  Nbd7 {[%clk 0:02:55]} 9. Bxf6 {[%clk 0:02:56]}  gxf6 {[%clk 0:02:36]} 10. g3 {[%clk 0:02:49]}  a6 {[%clk 0:02:34]} 11. Bg2 {[%clk 0:02:49]}  b5 {[%clk 0:02:35]} 12. Qc2 {[%clk 0:02:49]}  f5 {[%clk 0:02:28]} 13. Bh3 {[%clk 0:02:41]}  Qf6 {[%clk 0:02:25]} 14. Nh4 {[%clk 0:02:41]}  f4 {[%clk 0:02:18]} 15. Bxe6 {[%clk 0:02:40]}  fxe6 {[%clk 0:02:18]} 16. exf4 {[%clk 0:02:35]}  Qxd4 {[%clk 0:02:12]} 17. O-O {[%clk 0:02:35]}  Be7 {[%clk 0:02:09]} 18. Nf3 {[%clk 0:02:34]}  Qf6 {[%clk 0:02:00]} 19. Rfe1 {[%clk 0:02:35]}  Nc5 {[%clk 0:01:55]} 20. Re2 {[%clk 0:02:19]}  O-O {[%clk 0:01:42]} 21. Rae1 {[%clk 0:02:19]}  b4 {[%clk 0:01:30]} 22. Nxd5 {[%clk 0:02:16]}  exd5 {[%clk 0:01:28]} 23. Rxe7 {[%clk 0:02:16]}  Nd3 {[%clk 0:01:24]} 24. R1e2 {[%clk 0:02:10]}  Rf7 {[%clk 0:00:57]} 25. Rxf7 {[%clk 0:02:09]}  Qxf7 {[%clk 0:00:57]} 26. Ne5 {[%clk 0:02:09]}  Nxe5 {[%clk 0:00:55]} 27. Rxe5 {[%clk 0:02:09]}  d4 {[%clk 0:00:49]} 28. Qe4 {[%clk 0:02:05]}  Rd8 {[%clk 0:00:38]} 29. Rg5+ {[%clk 0:02:05]}  Kf8 {[%clk 0:00:31]} 30. Rf5 {[%clk 0:02:04]}  d3 {[%clk 0:00:29]} 31. Rxf7+ {[%clk 0:02:04]}  Kxf7 {[%clk 0:00:30]} 32. Qxc4+ {[%clk 0:02:02]}  Kf6 {[%clk 0:00:22]} 33. Qxa6+ {[%clk 0:01:57]}  Ke7 {[%clk 0:00:19]} 34. Qa7+ {[%clk 0:01:55]}  Ke6 {[%clk 0:00:18]} 35. Qe3+ {[%clk 0:01:53]}  Kf7 {[%clk 0:00:18]} 36. Qd2 {[%clk 0:01:53]}  Kg6 {[%clk 0:00:17]} 37. Kg2 {[%clk 0:01:52]}  h5 {[%clk 0:00:17]} 38. Kf3 {[%clk 0:01:52]}  Kf5 {[%clk 0:00:15]} 39. h3 {[%clk 0:01:53]} 1-0


[Site "https://www.chess.com"]

[Event "Titled Tuesday Blitz May 17 Early 2022"]
[White "Shimanov, Aleksandr"]
[Black "Grischuk, Alexander"]
[WhiteFideId "4198603"]
[BlackFideId "4126025"]
[WhiteElo "2605"]
[BlackElo "2762"]
[Result "0-1"]
[Round "10"]
[TimeControl "180+1"]
[Date "2022.05.17"]
[WhiteClock "0:00:03"]
[BlackClock "0:00:31"]

1. e4 {[%clk 0:03:00]}  e6 {[%clk 0:02:58]} 2. d4 {[%clk 0:02:53]}  d5 {[%clk 0:02:58]} 3. Nd2 {[%clk 0:02:48]}  c5 {[%clk 0:02:57]} 4. Ngf3 {[%clk 0:02:47]}  cxd4 {[%clk 0:02:56]} 5. Nxd4 {[%clk 0:02:47]}  Nf6 {[%clk 0:02:57]} 6. exd5 {[%clk 0:02:47]}  Nxd5 {[%clk 0:02:58]} 7. a3 {[%clk 0:02:45]}  Bc5 {[%clk 0:02:45]} 8. N2f3 {[%clk 0:02:44]}  O-O {[%clk 0:02:44]} 9. Bd3 {[%clk 0:02:44]}  e5 {[%clk 0:02:25]} 10. Nb3 {[%clk 0:02:42]}  Bb6 {[%clk 0:02:25]} 11. O-O {[%clk 0:02:28]}  Nc6 {[%clk 0:02:26]} 12. Be4 {[%clk 0:02:24]}  Nde7 {[%clk 0:02:22]} 13. Qe2 {[%clk 0:01:41]}  f5 {[%clk 0:01:59]} 14. Bxc6 {[%clk 0:01:39]}  Nxc6 {[%clk 0:02:00]} 15. Nxe5 {[%clk 0:01:17]}  Re8 {[%clk 0:02:00]} 16. Nxc6 {[%clk 0:01:15]}  bxc6 {[%clk 0:01:38]} 17. Qf3 {[%clk 0:01:10]}  Ba6 {[%clk 0:01:32]} 18. Bf4 {[%clk 0:00:19]}  Bxf1 {[%clk 0:01:29]} 19. Rxf1 {[%clk 0:00:20]}  Qd5 {[%clk 0:01:17]} 20. Qxd5+ {[%clk 0:00:15]}  cxd5 {[%clk 0:01:18]} 21. Rd1 {[%clk 0:00:15]}  Re2 {[%clk 0:01:14]} 22. Be3 {[%clk 0:00:08]}  Bxe3 {[%clk 0:01:05]} 23. fxe3 {[%clk 0:00:09]}  Rxc2 {[%clk 0:01:06]} 24. Rxd5 {[%clk 0:00:08]}  Rxb2 {[%clk 0:01:04]} 25. Nd4 {[%clk 0:00:09]}  f4 {[%clk 0:00:38]} 26. exf4 {[%clk 0:00:06]}  Rd2 {[%clk 0:00:38]} 27. Rd7 {[%clk 0:00:05]}  Re8 {[%clk 0:00:36]} 28. h3 {[%clk 0:00:04]}  Re4 {[%clk 0:00:33]} 29. Rd8+ {[%clk 0:00:04]}  Kf7 {[%clk 0:00:33]} 30. Nc6 {[%clk 0:00:04]}  Rxd8 {[%clk 0:00:32]} 31. Nxd8+ {[%clk 0:00:05]}  Kf6 {[%clk 0:00:31]} 32. Nc6 {[%clk 0:00:05]}  Ra4 {[%clk 0:00:30]} 33. g3 {[%clk 0:00:03]}  Rxa3 {[%clk 0:00:30]} 34. Kf2 {[%clk 0:00:03]}  a5 {[%clk 0:00:31]} 0-1


[Site "https://www.chess.com"]

[Event "Titled Tuesday Blitz May 17 Early 2022"]
[White "Svane, Rasmus"]
[Black "Bortnyk, Olexandr"]
[WhiteFideId "4657101"]
[BlackFideId "14120828"]
[WhiteElo "2674"]
[BlackElo "2723"]
[Result "1-0"]
[Round "10"]
[TimeControl "180+1"]
[Date "2022.05.17"]
[WhiteClock "0:01:00"]
[BlackClock "0:00:05"]

1. Nf3 {[%clk 0:03:00]}  d6 {[%clk 0:02:56]} 2. d4 {[%clk 0:03:00]}  Nf6 {[%clk 0:02:56]} 3. g3 {[%clk 0:03:00]}  g6 {[%clk 0:02:57]} 4. Bg2 {[%clk 0:03:00]}  Bg7 {[%clk 0:02:57]} 5. O-O {[%clk 0:03:01]}  O-O {[%clk 0:02:58]} 6. Re1 {[%clk 0:03:02]}  c5 {[%clk 0:02:51]} 7. dxc5 {[%clk 0:03:02]}  dxc5 {[%clk 0:02:52]} 8. c3 {[%clk 0:03:02]}  Bf5 {[%clk 0:02:36]} 9. Qxd8 {[%clk 0:02:51]}  Rxd8 {[%clk 0:02:36]} 10. Be3 {[%clk 0:02:52]}  Nbd7 {[%clk 0:02:24]} 11. Na3 {[%clk 0:02:27]}  Be4 {[%clk 0:02:14]} 12. Red1 {[%clk 0:02:23]}  b6 {[%clk 0:02:13]} 13. Nc4 {[%clk 0:02:12]}  Bd5 {[%clk 0:01:45]} 14. Nfe5 {[%clk 0:02:08]}  Nxe5 {[%clk 0:01:35]} 15. Nxe5 {[%clk 0:02:09]}  Bxg2 {[%clk 0:01:34]} 16. Kxg2 {[%clk 0:02:09]}  Nd5 {[%clk 0:01:30]} 17. Nc6 {[%clk 0:02:02]}  Nxe3+ {[%clk 0:01:29]} 18. fxe3 {[%clk 0:02:03]}  Rxd1 {[%clk 0:00:58]} 19. Rxd1 {[%clk 0:02:04]}  Kf8 {[%clk 0:00:58]} 20. Rd7 {[%clk 0:02:03]}  a6 {[%clk 0:00:47]} 21. Nxe7 {[%clk 0:02:01]}  Ke8 {[%clk 0:00:39]} 22. Rb7 {[%clk 0:01:58]}  Rd8 {[%clk 0:00:27]} 23. Nc6 {[%clk 0:01:45]}  Rd2 {[%clk 0:00:27]} 24. Rb8+ {[%clk 0:01:40]}  Kd7 {[%clk 0:00:20]} 25. Rd8+ {[%clk 0:01:40]}  Kxc6 {[%clk 0:00:21]} 26. Rxd2 {[%clk 0:01:41]}  Bf6 {[%clk 0:00:20]} 27. Kf3 {[%clk 0:01:41]}  Bg5 {[%clk 0:00:20]} 28. h4 {[%clk 0:01:41]}  Be7 {[%clk 0:00:20]} 29. e4 {[%clk 0:01:39]}  Bd6 {[%clk 0:00:19]} 30. c4 {[%clk 0:01:40]}  f6 {[%clk 0:00:19]} 31. b3 {[%clk 0:01:39]}  Kd7 {[%clk 0:00:19]} 32. e5 {[%clk 0:01:34]}  fxe5 {[%clk 0:00:20]} 33. Ke4 {[%clk 0:01:34]}  Ke6 {[%clk 0:00:20]} 34. Rd1 {[%clk 0:01:31]}  h6 {[%clk 0:00:20]} 35. g4 {[%clk 0:01:30]}  a5 {[%clk 0:00:20]} 36. h5 {[%clk 0:01:28]}  g5 {[%clk 0:00:18]} 37. a4 {[%clk 0:01:20]}  Be7 {[%clk 0:00:15]} 38. Rf1 {[%clk 0:01:19]}  Bf6 {[%clk 0:00:13]} 39. Rxf6+ {[%clk 0:01:06]}  Kxf6 {[%clk 0:00:14]} 40. Kd5 {[%clk 0:01:06]}  e4 {[%clk 0:00:13]} 41. Kxe4 {[%clk 0:01:04]}  Ke6 {[%clk 0:00:08]} 42. e3 {[%clk 0:01:04]}  Kd6 {[%clk 0:00:08]} 43. Kf5 {[%clk 0:01:04]}  Kd7 {[%clk 0:00:08]} 44. Kf6 {[%clk 0:01:00]}  Kd6 {[%clk 0:00:05]} 45. e4 {[%clk 0:01:00]} 1-0


[Site "https://www.chess.com"]

[Event "Titled Tuesday Blitz May 17 Early 2022"]
[White "Vokhidov, Shamsiddin"]
[Black "Wagh Suyog"]
[WhiteFideId "14204223"]
[BlackFideId "25071688"]
[WhiteElo "2611"]
[BlackElo "2181"]
[Result "1-0"]
[Round "10"]
[TimeControl "180+1"]
[Date "2022.05.17"]
[WhiteClock "0:02:41"]
[BlackClock "0:02:23"]

1. e4 {[%clk 0:02:53]}  e5 {[%clk 0:02:59]} 2. Nf3 {[%clk 0:02:53]}  Nc6 {[%clk 0:02:59]} 3. Nc3 {[%clk 0:02:54]}  Nf6 {[%clk 0:02:59]} 4. a3 {[%clk 0:02:54]}  d5 {[%clk 0:02:46]} 5. Bb5 {[%clk 0:02:54]}  dxe4 {[%clk 0:02:46]} 6. Nxe5 {[%clk 0:02:53]}  Qd6 {[%clk 0:02:43]} 7. d4 {[%clk 0:02:52]}  exd3 {[%clk 0:02:41]} 8. O-O {[%clk 0:02:52]}  Be7 {[%clk 0:02:38]} 9. Bf4 {[%clk 0:02:52]}  Qc5 {[%clk 0:02:26]} 10. Nxd3 {[%clk 0:02:43]}  Qb6 {[%clk 0:02:23]} 11. Be3 {[%clk 0:02:41]} 1-0


[Site "https://www.chess.com"]

[Event "Titled Tuesday Blitz May 17 Early 2022"]
[White "Wagner, Dennis"]
[Black "Oparin, Grigoriy"]
[WhiteFideId "24650684"]
[BlackFideId "24125890"]
[WhiteElo "2355"]
[BlackElo "2665"]
[Result "1/2-1/2"]
[Round "10"]
[TimeControl "180+1"]
[Date "2022.05.17"]
[WhiteClock "0:00:02"]
[BlackClock "0:00:05"]

1. e4 {[%clk 0:03:00]}  c6 {[%clk 0:02:59]} 2. d4 {[%clk 0:02:59]}  d5 {[%clk 0:03:00]} 3. e5 {[%clk 0:02:59]}  Bf5 {[%clk 0:02:59]} 4. Nf3 {[%clk 0:02:59]}  e6 {[%clk 0:03:00]} 5. Be2 {[%clk 0:03:00]}  Ne7 {[%clk 0:03:00]} 6. c3 {[%clk 0:02:59]}  h6 {[%clk 0:02:59]} 7. O-O {[%clk 0:02:58]}  Nd7 {[%clk 0:02:58]} 8. a4 {[%clk 0:02:57]}  g5 {[%clk 0:02:58]} 9. b4 {[%clk 0:02:53]}  Bg7 {[%clk 0:02:57]} 10. a5 {[%clk 0:02:52]}  O-O {[%clk 0:02:56]} 11. Na3 {[%clk 0:02:45]}  f6 {[%clk 0:02:57]} 12. exf6 {[%clk 0:02:44]}  Nxf6 {[%clk 0:02:56]} 13. Nc2 {[%clk 0:02:44]}  Ne4 {[%clk 0:02:55]} 14. Ra3 {[%clk 0:02:37]}  Ng6 {[%clk 0:02:56]} 15. Ne3 {[%clk 0:02:19]}  g4 {[%clk 0:02:55]} 16. Nd2 {[%clk 0:02:12]}  h5 {[%clk 0:02:56]} 17. Nxe4 {[%clk 0:02:08]}  Bxe4 {[%clk 0:02:57]} 18. f3 {[%clk 0:02:08]}  gxf3 {[%clk 0:02:55]} 19. Bxf3 {[%clk 0:02:09]}  Qh4 {[%clk 0:02:50]} 20. Bxe4 {[%clk 0:00:45]}  Qxe4 {[%clk 0:02:51]} 21. Qxh5 {[%clk 0:00:43]}  Nf4 {[%clk 0:02:45]} 22. Qg4 {[%clk 0:00:39]}  e5 {[%clk 0:01:36]} 23. dxe5 {[%clk 0:00:28]}  Qxe5 {[%clk 0:01:35]} 24. Ra2 {[%clk 0:00:19]}  Rf6 {[%clk 0:01:12]} 25. Raf2 {[%clk 0:00:17]}  Raf8 {[%clk 0:01:12]} 26. Nf5 {[%clk 0:00:05]}  Rxf5 {[%clk 0:01:04]} 27. Rxf4 {[%clk 0:00:05]}  Rxf4 {[%clk 0:01:01]} 28. Bxf4 {[%clk 0:00:05]}  Qxc3 {[%clk 0:00:33]} 29. Qe6+ {[%clk 0:00:05]}  Kh7 {[%clk 0:00:33]} 30. Qh3+ {[%clk 0:00:05]}  Qxh3 {[%clk 0:00:33]} 31. gxh3 {[%clk 0:00:05]}  Bc3 {[%clk 0:00:32]} 32. Bd6 {[%clk 0:00:04]}  Rxf1+ {[%clk 0:00:31]} 33. Kxf1 {[%clk 0:00:05]}  Kg6 {[%clk 0:00:31]} 34. Ke2 {[%clk 0:00:05]}  Kf5 {[%clk 0:00:30]} 35. Kd3 {[%clk 0:00:06]}  Be5 {[%clk 0:00:30]} 36. Bc5 {[%clk 0:00:05]}  a6 {[%clk 0:00:29]} 37. Bg1 {[%clk 0:00:06]}  Bd6 {[%clk 0:00:29]} 38. Kc3 {[%clk 0:00:04]}  Ke4 {[%clk 0:00:29]} 39. h4 {[%clk 0:00:04]}  Be5+ {[%clk 0:00:29]} 40. Kc2 {[%clk 0:00:04]}  d4 {[%clk 0:00:25]} 41. h5 {[%clk 0:00:05]}  Bf4 {[%clk 0:00:23]} 42. h3 {[%clk 0:00:03]}  d3+ {[%clk 0:00:19]} 43. Kc3 {[%clk 0:00:03]}  d2 {[%clk 0:00:11]} 44. Kc2 {[%clk 0:00:04]}  Kf5 {[%clk 0:00:11]} 45. Bd4 {[%clk 0:00:03]}  Kg5 {[%clk 0:00:11]} 46. Bc3 {[%clk 0:00:04]}  Kxh5 {[%clk 0:00:12]} 47. Bxd2 {[%clk 0:00:04]}  Bd6 {[%clk 0:00:12]} 48. Kd3 {[%clk 0:00:04]}  Kh4 {[%clk 0:00:13]} 49. Kc4 {[%clk 0:00:03]}  Kxh3 {[%clk 0:00:13]} 50. Be3 {[%clk 0:00:03]}  Kg4 {[%clk 0:00:14]} 51. Bc5 {[%clk 0:00:04]}  Bc7 {[%clk 0:00:14]} 52. Bb6 {[%clk 0:00:03]}  Bb8 {[%clk 0:00:13]} 53. Kc5 {[%clk 0:00:03]}  Bg3 {[%clk 0:00:06]} 54. Bd8 {[%clk 0:00:03]}  Be1 {[%clk 0:00:05]} 55. Kd6 {[%clk 0:00:04]}  Bxb4+ {[%clk 0:00:05]} 56. Kd7 {[%clk 0:00:04]}  c5 {[%clk 0:00:05]} 57. Kc8 {[%clk 0:00:03]}  c4 {[%clk 0:00:05]} 58. Bf6 {[%clk 0:00:02]}  Bxa5 {[%clk 0:00:05]} 59. Kxb7 {[%clk 0:00:02]}  Kf5 {[%clk 0:00:05]} 60. Bg7 {[%clk 0:00:02]}  Bd2 {[%clk 0:00:05]} 61. Kxa6 {[%clk 0:00:02]}  Be3 {[%clk 0:00:05]} 62. Kb5 {[%clk 0:00:02]}  Bd4 {[%clk 0:00:05]} 63. Kxc4 {[%clk 0:00:02]} 1/2-1/2


[Site "https://www.chess.com"]

[Event "Titled Tuesday Blitz May 17 Early 2022"]
[White "Yeletsky, Ivan"]
[Black "Liyanage, Ranindu Dilshan"]
[WhiteFideId "24180327"]
[BlackFideId "9915834"]
[WhiteElo "2319"]
[BlackElo "1858"]
[Result "1-0"]
[Round "10"]
[TimeControl "180+1"]
[Date "2022.05.17"]
[WhiteClock "0:00:25"]
[BlackClock "0:00:36"]

1. e4 {[%clk 0:03:00]}  e6 {[%clk 0:02:59]} 2. Qe2 {[%clk 0:02:59]}  d5 {[%clk 0:03:00]} 3. exd5 {[%clk 0:02:59]}  Qxd5 {[%clk 0:03:00]} 4. Nc3 {[%clk 0:02:59]}  Qd8 {[%clk 0:03:01]} 5. Nf3 {[%clk 0:02:58]}  Nf6 {[%clk 0:03:01]} 6. d4 {[%clk 0:02:58]}  b6 {[%clk 0:03:01]} 7. Qb5+ {[%clk 0:02:54]}  Bd7 {[%clk 0:02:57]} 8. Qg5 {[%clk 0:02:54]}  h6 {[%clk 0:02:55]} 9. Qh4 {[%clk 0:02:49]}  Bd6 {[%clk 0:02:52]} 10. Ne5 {[%clk 0:02:44]}  Nc6 {[%clk 0:02:43]} 11. Nxd7 {[%clk 0:02:38]}  Qxd7 {[%clk 0:02:44]} 12. Be3 {[%clk 0:02:22]}  Ne7 {[%clk 0:02:35]} 13. O-O-O {[%clk 0:02:16]}  Nf5 {[%clk 0:02:31]} 14. Qh3 {[%clk 0:02:16]}  O-O {[%clk 0:02:25]} 15. Bd3 {[%clk 0:02:12]}  Bb4 {[%clk 0:02:19]} 16. Ne2 {[%clk 0:02:00]}  Rfe8 {[%clk 0:01:52]} 17. c3 {[%clk 0:01:47]}  Bd6 {[%clk 0:01:50]} 18. Bd2 {[%clk 0:01:46]}  Ne7 {[%clk 0:01:39]} 19. f4 {[%clk 0:01:25]}  Nfd5 {[%clk 0:01:33]} 20. g4 {[%clk 0:01:22]}  Ng6 {[%clk 0:01:22]} 21. Rhf1 {[%clk 0:01:18]}  Qe7 {[%clk 0:01:18]} 22. g5 {[%clk 0:01:14]}  hxg5 {[%clk 0:01:08]} 23. fxg5 {[%clk 0:01:14]}  e5 {[%clk 0:01:08]} 24. Ng3 {[%clk 0:01:03]}  Ndf4 {[%clk 0:01:03]} 25. Bxf4 {[%clk 0:00:58]}  exf4 {[%clk 0:01:04]} 26. Nf5 {[%clk 0:00:50]}  Qxg5 {[%clk 0:01:03]} 27. Rg1 {[%clk 0:00:43]}  Qf6 {[%clk 0:01:03]} 28. Rxg6 {[%clk 0:00:36]}  Qxg6 {[%clk 0:00:45]} 29. Nxd6 {[%clk 0:00:27]}  Qxd6 {[%clk 0:00:40]} 30. Qh7+ {[%clk 0:00:27]}  Kf8 {[%clk 0:00:40]} 31. Qh8+ {[%clk 0:00:28]}  Ke7 {[%clk 0:00:41]} 32. Re1+ {[%clk 0:00:29]}  Kd7 {[%clk 0:00:37]} 33. Bf5+ {[%clk 0:00:29]}  Re6 {[%clk 0:00:37]} 34. Qxa8 {[%clk 0:00:25]}  f3 {[%clk 0:00:36]} 35. Bxe6+ {[%clk 0:00:25]}  fxe6 {[%clk 0:00:36]} 36. Qxf3 {[%clk 0:00:25]} 1-0


[Site "https://www.chess.com"]

[Event "Titled Tuesday Blitz May 17 Early 2022"]
[White "Zhigalko, Sergei"]
[Black "Zakhartsov, Vladimir"]
[WhiteFideId "13502956"]
[BlackFideId "4145097"]
[WhiteElo "2662"]
[BlackElo "2428"]
[Result "1-0"]
[Round "10"]
[TimeControl "180+1"]
[Date "2022.05.17"]
[WhiteClock "0:00:07"]
[BlackClock "0:00:08"]

1. e4 {[%clk 0:02:50]}  c6 {[%clk 0:02:56]} 2. d4 {[%clk 0:02:50]}  d5 {[%clk 0:02:56]} 3. e5 {[%clk 0:02:50]}  Bf5 {[%clk 0:02:56]} 4. Nf3 {[%clk 0:02:50]}  e6 {[%clk 0:02:56]} 5. Be2 {[%clk 0:02:51]}  c5 {[%clk 0:02:56]} 6. Be3 {[%clk 0:02:51]}  Qb6 {[%clk 0:02:49]} 7. Nc3 {[%clk 0:02:50]}  Nc6 {[%clk 0:02:48]} 8. dxc5 {[%clk 0:02:49]}  Bxc5 {[%clk 0:02:30]} 9. Bxc5 {[%clk 0:02:50]}  Qxc5 {[%clk 0:02:31]} 10. Nb5 {[%clk 0:02:50]}  Nge7 {[%clk 0:02:26]} 11. Nc7+ {[%clk 0:02:49]}  Kd7 {[%clk 0:02:19]} 12. Nxa8 {[%clk 0:02:50]}  Qxc2 {[%clk 0:02:12]} 13. Qxc2 {[%clk 0:02:15]}  Bxc2 {[%clk 0:02:10]} 14. Bb5 {[%clk 0:02:08]}  Rxa8 {[%clk 0:02:09]} 15. Nd4 {[%clk 0:02:05]}  Bg6 {[%clk 0:01:56]} 16. Kd2 {[%clk 0:01:38]}  a6 {[%clk 0:01:54]} 17. Bxc6+ {[%clk 0:01:39]}  Nxc6 {[%clk 0:01:51]} 18. Nxc6 {[%clk 0:01:27]}  bxc6 {[%clk 0:01:52]} 19. b4 {[%clk 0:01:24]}  f6 {[%clk 0:01:48]} 20. f4 {[%clk 0:01:17]}  a5 {[%clk 0:01:42]} 21. a3 {[%clk 0:01:17]}  Be4 {[%clk 0:01:33]} 22. Rhf1 {[%clk 0:00:45]}  Kc7 {[%clk 0:01:27]} 23. g3 {[%clk 0:00:42]}  Kb6 {[%clk 0:01:26]} 24. Kc3 {[%clk 0:00:40]}  c5 {[%clk 0:01:14]} 25. bxc5+ {[%clk 0:00:38]}  Kxc5 {[%clk 0:01:15]} 26. Rfc1 {[%clk 0:00:34]}  Rb8 {[%clk 0:01:06]} 27. Ra2 {[%clk 0:00:10]}  fxe5 {[%clk 0:01:05]} 28. fxe5 {[%clk 0:00:11]}  d4+ {[%clk 0:01:01]} 29. Kd2+ {[%clk 0:00:11]}  Kd5 {[%clk 0:01:02]} 30. Rc7 {[%clk 0:00:12]}  Kxe5 {[%clk 0:00:57]} 31. Rc5+ {[%clk 0:00:09]}  Bd5 {[%clk 0:00:56]} 32. Rxa5 {[%clk 0:00:10]}  Rf8 {[%clk 0:00:55]} 33. Kd3 {[%clk 0:00:03]}  Rf3+ {[%clk 0:00:54]} 34. Ke2 {[%clk 0:00:04]}  Ke4 {[%clk 0:00:47]} 35. Rb2 {[%clk 0:00:01]}  d3+ {[%clk 0:00:41]} 36. Kd2 {[%clk 0:00:02]}  Rf2+ {[%clk 0:00:31]} 37. Kc3 {[%clk 0:00:02]}  Rxb2 {[%clk 0:00:32]} 38. Kxb2 {[%clk 0:00:03]}  d2 {[%clk 0:00:33]} 39. Kc2 {[%clk 0:00:02]}  Ke3 {[%clk 0:00:33]} 40. Rxd5 {[%clk 0:00:01]}  exd5 {[%clk 0:00:31]} 41. Kd1 {[%clk 0:00:02]}  Kd3 {[%clk 0:00:22]} 42. a4 {[%clk 0:00:03]}  Kc4 {[%clk 0:00:20]} 43. Kxd2 {[%clk 0:00:04]}  Kb4 {[%clk 0:00:20]} 44. Kd3 {[%clk 0:00:05]}  Kxa4 {[%clk 0:00:21]} 45. Kd4 {[%clk 0:00:05]}  Kb3 {[%clk 0:00:18]} 46. Kxd5 {[%clk 0:00:06]}  Kc3 {[%clk 0:00:19]} 47. Ke6 {[%clk 0:00:07]}  Kd3 {[%clk 0:00:10]} 48. Kf7 {[%clk 0:00:08]}  g5 {[%clk 0:00:08]} 49. Kf6 {[%clk 0:00:08]}  g4 {[%clk 0:00:08]} 50. Kg5 {[%clk 0:00:07]} 1-0


[Site "https://www.chess.com"]

[Event "Titled Tuesday Blitz May 17 Early 2022"]
[White "Abdusattorov, Nodirbek"]
[Black "Jarovinsky, Alexey"]
[WhiteFideId "14204118"]
[BlackFideId "14115131"]
[WhiteElo "2663"]
[BlackElo "2446"]
[Result "1-0"]
[Round "11"]
[TimeControl "180+1"]
[Date "2022.05.17"]
[WhiteClock "0:02:39"]
[BlackClock "0:01:40"]

1. g3 {[%clk 0:03:00]}  Nc6 {[%clk 0:03:00]} 2. Bg2 {[%clk 0:03:00]}  e5 {[%clk 0:02:58]} 3. b3 {[%clk 0:03:00]}  d6 {[%clk 0:02:58]} 4. Bb2 {[%clk 0:03:01]}  g6 {[%clk 0:02:57]} 5. c4 {[%clk 0:02:58]}  Bg7 {[%clk 0:02:58]} 6. Nf3 {[%clk 0:02:59]}  Nge7 {[%clk 0:02:56]} 7. d4 {[%clk 0:03:00]}  O-O {[%clk 0:02:39]} 8. O-O {[%clk 0:02:59]}  Bg4 {[%clk 0:02:27]} 9. dxe5 {[%clk 0:02:53]}  dxe5 {[%clk 0:02:27]} 10. h3 {[%clk 0:02:48]}  Bxf3 {[%clk 0:02:21]} 11. exf3 {[%clk 0:02:44]}  Qxd1 {[%clk 0:02:20]} 12. Rxd1 {[%clk 0:02:44]}  Rfd8 {[%clk 0:02:19]} 13. Na3 {[%clk 0:02:33]}  a6 {[%clk 0:02:11]} 14. Kf1 {[%clk 0:02:33]}  Rxd1+ {[%clk 0:02:09]} 15. Rxd1 {[%clk 0:02:33]}  Rd8 {[%clk 0:02:09]} 16. Rxd8+ {[%clk 0:02:34]}  Nxd8 {[%clk 0:02:10]} 17. Nc2 {[%clk 0:02:35]}  f6 {[%clk 0:02:05]} 18. Ne3 {[%clk 0:02:35]}  Bf8 {[%clk 0:01:59]} 19. f4 {[%clk 0:02:35]}  exf4 {[%clk 0:01:57]} 20. gxf4 {[%clk 0:02:36]}  f5 {[%clk 0:01:55]} 21. Nd5 {[%clk 0:02:36]}  Ne6 {[%clk 0:01:46]} 22. Nxe7+ {[%clk 0:02:36]}  Bxe7 {[%clk 0:01:46]} 23. Bxb7 {[%clk 0:02:37]}  a5 {[%clk 0:01:40]} 24. Bd5 {[%clk 0:02:37]}  Kf7 {[%clk 0:01:39]} 25. Be5 {[%clk 0:02:38]}  Bd6 {[%clk 0:01:39]} 26. Bxd6 {[%clk 0:02:38]}  cxd6 {[%clk 0:01:40]} 27. Bxe6+ {[%clk 0:02:39]} 1-0


[Site "https://www.chess.com"]